bitfinex-derivatives/quotes_BTCF0:USTF0_20250609
["timestamp","ask_amount","ask_price","bid_price","bid_amount"]
[1749483195826,1.09010014,107870.0,107860.0,0.185337]
[1749483196025,1.24793384,107870.0,107860.0,0.2780197]
[1749483196229,1.05374644,107870.0,107860.0,0.2780197]
[1749483197239,0.9550108,107870.0,107860.0,0.2800197]
[1749483197538,0.8989108,107870.0,107860.0,0.3933197]
[1749483197932,0.8989108,107870.0,107860.0,0.7541197]
[1749483198231,1.0526108,107870.0,107860.0,0.7541197]
[1749483198436,0.8989108,107870.0,107860.0,0.7541197]
[1749483198739,1.5701982,107870.0,107860.0,0.0946827]
[1749483199033,1.5701982,107870.0,107860.0,0.2800197]
[1749483199034,0.4871708,107870.0,107860.0,0.2800197]
[1749483199239,0.9000308,107870.0,107860.0,0.6977197]
[1749483199439,0.9000308,107870.0,107860.0,0.7541197]
[1749483199638,0.9004308,107870.0,107860.0,0.7541197]
[1749483200040,0.9004308,107870.0,107860.0,0.9541197]
[1749483200236,0.2786034,107870.0,107860.0,0.9541197]
[1749483200442,0.0465507,107870.0,107860.0,0.9541197]
[1749483200743,0.7148798,107870.0,107860.0,0.9541197]
[1749483201840,0.0004,107870.0,107860.0,0.9541197]
[1749483202034,0.7149197,107870.0,107860.0,0.9541197]
[1749483203942,0.7145197,107870.0,107860.0,0.9541197]
[1749483204139,0.27811204,107880.0,107870.0,0.1853197]
[1749483204441,0.80711204,107880.0,107870.0,0.7174197]
[1749483204642,0.80711204,107880.0,107870.0,0.81011958]
[1749483204643,0.80751204,107880.0,107870.0,0.81011958]
[1749483206335,1.00169944,107880.0,107870.0,0.26399988]
[1749483206543,1.36249944,107880.0,107870.0,0.09269988]
[1749483206733,1.52469944,107880.0,107870.0,0.09369988]
[1749483207244,1.52469944,107880.0,107870.0,0.27901968]
[1749483207748,1.33051204,107880.0,107870.0,0.27901968]
[1749483207945,1.37511376,107880.0,107870.0,0.27901968]
[1749483208146,1.56930116,107880.0,107870.0,0.27901968]
[1749483208352,1.12061376,107880.0,107870.0,0.27901968]
[1749483208551,0.96121204,107880.0,107870.0,0.75061968]
[1749483208952,0.96121204,107880.0,107870.0,0.38981968]
[1749483209745,0.96121204,107880.0,107870.0,0.20449988]
[1749483210141,0.96121204,107880.0,107870.0,0.38981958]
[1749483210345,1.32201204,107880.0,107870.0,0.20449988]
[1749483210551,0.96121204,107880.0,107870.0,0.20449988]
[1749483210754,1.00582132,107880.0,107870.0,0.20449988]
[1749483211353,1.20000872,107880.0,107870.0,0.20449988]
[1749483211555,1.20000872,107880.0,107870.0,0.40449988]
[1749483212048,1.56080872,107880.0,107870.0,0.29369988]
[1749483212255,1.81130472,107880.0,107870.0,0.29369988]
[1749483212653,1.85464036,107880.0,107870.0,0.29369988]
[1749483213156,1.81130472,107880.0,107870.0,0.29369988]
[1749483213350,1.85464036,107880.0,107870.0,0.29369988]
[1749483213755,1.81130472,107880.0,107870.0,0.29369988]
[1749483215956,1.81130472,107880.0,107870.0,0.201]
[1749483216162,1.91242122,107880.0,107870.0,0.14704468]
[1749483216559,1.86908558,107880.0,107870.0,0.16881468]
[1749483219063,1.86908558,107880.0,107870.0,0.16636468]
[1749483220349,1.86908558,107880.0,107870.0,0.15470468]
[1749483220748,1.77638958,107880.0,107870.0,0.15470468]
[1749483222156,1.24738958,107880.0,107870.0,0.15470468]
[1749483222352,1.72862958,107880.0,107870.0,0.15470468]
[1749483222551,1.24281961,107880.0,107870.0,0.26540468]
[1749483222757,0.71423875,107880.0,107870.0,0.35810456]
[1749483222961,1.19960872,107880.0,107870.0,0.35810456]
[1749483223157,0.77192872,107880.0,107870.0,0.35810456]
[1749483223358,1.56040872,107880.0,107870.0,0.35810456]
[1749483223559,1.03140872,107880.0,107870.0,0.54342436]
[1749483223758,0.67100872,107880.0,107870.0,0.54342436]
[1749483223958,1.20000872,107880.0,107870.0,0.54342436]
[1749483224162,1.00582132,107880.0,107870.0,0.54342436]
[1749483224862,1.00582132,107880.0,107870.0,0.35810456]
[1749483225061,1.56080872,107880.0,107870.0,0.35810456]
[1749483225562,1.60403875,107880.0,107870.0,0.24740456]
[1749483225765,1.76723875,107880.0,107870.0,0.24740456]
[1749483225954,1.82501961,107880.0,107870.0,0.24740456]
[1749483228161,1.60403875,107880.0,107870.0,0.24740456]
[1749483228363,1.60403875,107880.0,107870.0,0.36080456]
[1749483228554,1.66181961,107880.0,107870.0,0.36080456]
[1749483229367,1.66141961,107880.0,107870.0,0.36080456]
[1749483229667,1.66181961,107880.0,107870.0,0.36080456]
[1749483229870,1.71991961,107880.0,107870.0,0.36080456]
[1749483230166,1.77801961,107880.0,107870.0,0.36080456]
[1749483232767,1.24901961,107880.0,107870.0,0.36080456]
[1749483232967,1.13281961,107880.0,107870.0,0.36080456]
[1749483233173,1.60347875,107880.0,107870.0,0.36080456]
[1749483233368,1.24227875,107880.0,107870.0,0.36080456]
[1749483233769,1.60343875,107880.0,107870.0,0.36080456]
[1749483235477,1.60303875,107880.0,107870.0,0.36080456]
[1749483236273,1.66121961,107880.0,107870.0,0.36080456]
[1749483236471,1.71931961,107880.0,107870.0,0.36080456]
[1749483238180,1.77161961,107880.0,107870.0,0.30430456]
[1749483238376,1.81506087,107880.0,107870.0,0.1277039]
[1749483238574,1.85936087,107880.0,107870.0,0.1277039]
[1749483240569,1.81506087,107880.0,107870.0,0.1277039]
[1749483240772,1.51047347,107880.0,107870.0,0.2393039]
[1749483240974,1.7470091,107880.0,107870.0,0.33200378]
[1749483241168,1.66073781,107880.0,107870.0,0.33200378]
[1749483241373,1.66033781,107880.0,107870.0,0.33200378]
[1749483241773,1.13289781,107880.0,107870.0,0.33200378]
[1749483241973,1.66105781,107880.0,107870.0,0.33200378]
[1749483242179,1.66065781,107880.0,107870.0,0.33200378]
[1749483242478,1.66105781,107880.0,107870.0,0.33200378]
[1749483243182,1.13289781,107880.0,107870.0,0.33200378]
[1749483243386,1.66093781,107880.0,107870.0,0.33200378]
[1749483243884,1.66089781,107880.0,107870.0,0.33200378]
[1749483245574,1.66077781,107880.0,107870.0,0.33200378]
[1749483245976,1.66037781,107880.0,107870.0,0.33200378]
[1749483246185,1.66077781,107880.0,107870.0,0.33200378]
[1749483251786,1.13289781,107880.0,107870.0,0.33200378]
[1749483252093,1.66025781,107880.0,107870.0,0.33200378]
[1749483252595,1.70362087,107880.0,107870.0,0.33200378]
[1749483253196,1.61694958,107880.0,107870.0,0.33200378]
[1749483253692,1.10514471,107880.0,107870.0,0.51732358]
[1749483253890,1.10474471,107880.0,107870.0,0.33200378]
[1749483254096,1.24155125,107880.0,107870.0,0.33200378]
[1749483254288,1.60235125,107880.0,107870.0,0.33200378]
[1749483254487,1.66013211,107880.0,107870.0,0.33200378]
[1749483255300,1.65526228,107880.0,107870.0,0.33200378]
[1749483256384,1.71136228,107880.0,107870.0,0.33200378]
[1749483256790,1.79803357,107880.0,107870.0,0.33200378]
[1749483257191,1.75469104,107880.0,107870.0,0.33200378]
[1749483257498,1.79803402,107880.0,107870.0,0.33200378]
[1749483258198,1.66801975,107880.0,107870.0,0.33200378]
[1749483258594,1.99640861,107880.0,107870.0,0.33200378]
[1749483259102,1.80709104,107880.0,107870.0,0.33200378]
[1749483259400,1.72041975,107880.0,107870.0,0.33200378]
[1749483259795,1.65547042,107880.0,107870.0,0.33200378]
[1749483260001,1.61171975,107880.0,107870.0,0.33200378]
[1749483260202,1.61211975,107880.0,107870.0,0.33200378]
[1749483261601,1.80143732,107880.0,107870.0,0.33200378]
[1749483261796,1.99950861,107880.0,107870.0,0.22040378]
[1749483262108,1.98602775,107880.0,107870.0,0.07637216]
[1749483262905,1.98602775,107880.0,107870.0,0.07282757]
[1749483263107,1.98602775,107880.0,107870.0,0.01631254]
[1749483263409,0.1853197,107870.0,107860.0,0.16956]
[1749483263596,1.46104448,107870.0,107860.0,0.16956]
[1749483263796,1.46104448,107870.0,107860.0,0.26225988]
[1749483264606,1.41640448,107870.0,107860.0,0.26225988]
[1749483264798,1.45973556,107870.0,107860.0,0.26225988]
[1749483264998,1.45973556,107870.0,107860.0,0.31815988]
[1749483265199,1.45973505,107870.0,107860.0,0.31815988]
[1749483265705,1.73386725,107870.0,107860.0,0.51815988]
[1749483265907,1.82053505,107870.0,107860.0,0.51815988]
[1749483266095,1.82093505,107870.0,107860.0,0.51815988]
[1749483266499,0.79429955,107870.0,107860.0,0.70349678]
[1749483266702,1.17868898,107870.0,107860.0,0.70349678]
[1749483266908,0.46488928,107870.0,107860.0,0.70349678]
[1749483267094,0.94876,107870.0,107860.0,1.06429678]
[1749483267598,0.10049894,107880.0,107870.0,0.1853197]
[1749483267802,0.10036,107880.0,107870.0,0.70671527]
[1749483268002,0.4428,107880.0,107870.0,0.89203497]
[1749483268202,0.4432,107880.0,107870.0,0.79055427]
[1749483268903,0.6285026,107880.0,107870.0,0.79055427]
[1749483269501,0.4432,107880.0,107870.0,0.79055427]
[1749483270510,0.6285025,107880.0,107870.0,0.79055427]
[1749483276414,0.6285025,107880.0,107870.0,0.81735427]
[1749483277104,0.0004,107880.0,107870.0,0.81735427]
[1749483277414,0.7136626,107880.0,107870.0,0.81735427]
[1749483277615,0.7140626,107880.0,107870.0,0.81735427]
[1749483279310,0.7140625,107880.0,107870.0,0.81735427]
[1749483279513,0.52876,107880.0,107870.0,0.81735427]
[1749483279710,0.7140625,107880.0,107870.0,0.81735427]
[1749483281114,0.7138625,107880.0,107870.0,0.81735427]
[1749483281521,0.7134625,107880.0,107870.0,0.81735427]
[1749483281707,0.7138625,107880.0,107870.0,0.41022807]
[1749483282019,0.90805167,107880.0,107870.0,0.35752807]
[1749483282211,1.32255167,107880.0,107870.0,0.17220847]
[1749483282709,1.37008833,107880.0,107870.0,0.35752807]
[1749483283306,1.32255167,107880.0,107870.0,0.35752807]
[1749483284416,1.32255167,107880.0,107870.0,0.17220847]
[1749483285210,1.36515794,107880.0,107870.0,0.17220847]
[1749483285410,1.42045794,107880.0,107870.0,0.17220847]
[1749483285812,1.76347275,107880.0,107870.0,0.11950847]
[1749483286614,1.57415794,107880.0,107870.0,0.31950847]
[1749483287116,1.76347275,107880.0,107870.0,0.31950847]
[1749483288008,1.57415794,107880.0,107870.0,0.31950847]
[1749483288415,1.76347275,107880.0,107870.0,0.31950847]
[1749483288616,1.76347275,107880.0,107870.0,0.2268]
[1749483290120,1.57415794,107880.0,107870.0,0.2268]
[1749483291121,1.76347275,107880.0,107870.0,0.2268]
[1749483293216,1.80680332,107880.0,107870.0,0.2268]
[1749483294413,0.046338,107860.0,107830.0,0.3608]
[1749483294610,0.37468611,107840.0,107830.0,0.2857323]
[1749483295012,0.37468611,107840.0,107830.0,0.73925797]
[1749483295526,0.7131313,107840.0,107830.0,0.76243797]
[1749483295714,0.7131313,107840.0,107830.0,0.82183797]
[1749483295913,0.551658,107840.0,107830.0,0.82183797]
[1749483296209,0.7370292,107840.0,107830.0,0.82783797]
[1749483297622,0.7370292,107840.0,107830.0,0.88333797]
[1749483297824,0.81154313,107840.0,107830.0,0.47619107]
[1749483298020,0.81154313,107840.0,107830.0,0.67619107]
[1749483298413,0.81154313,107840.0,107830.0,0.49080567]
[1749483298618,1.36165794,107840.0,107830.0,0.43680567]
[1749483298825,1.02065794,107840.0,107830.0,0.79760567]
[1749483299120,0.53264476,107840.0,107830.0,0.98339417]
[1749483299324,1.06016476,107840.0,107830.0,0.98339417]
[1749483299526,1.06016476,107840.0,107830.0,0.98299417]
[1749483299822,1.06016476,107840.0,107830.0,0.79800567]
[1749483300509,1.06016476,107840.0,107830.0,0.98339417]
[1749483302614,1.42096476,107840.0,107830.0,0.43720567]
[1749483303118,1.42096476,107840.0,107830.0,0.38170567]
[1749483303321,1.47526476,107840.0,107830.0,0.38170567]
[1749483303524,1.66457957,107840.0,107830.0,0.32190567]
[1749483303829,1.76745906,107840.0,107830.0,0.22958]
[1749483304126,1.76745906,107840.0,107830.0,0.22918]
[1749483304627,1.92125906,107840.0,107830.0,0.22918]
[1749483304819,1.39373906,107840.0,107830.0,0.22918]
[1749483305127,1.92089906,107840.0,107830.0,0.22958]
[1749483306216,1.39373906,107840.0,107830.0,0.22958]
[1749483306421,1.69246425,107840.0,107830.0,0.22958]
[1749483307728,1.16542425,107840.0,107830.0,0.22958]
[1749483307930,1.69242425,107840.0,107830.0,0.22958]
[1749483309321,1.69740058,107840.0,107830.0,0.22958]
[1749483309518,1.69740058,107840.0,107830.0,0.2064]
[1749483309719,1.11310058,107840.0,107830.0,0.29913426]
[1749483309925,0.29150944,107840.0,107830.0,0.54172276]
[1749483310120,0.77312995,107840.0,107830.0,0.46703426]
[1749483310628,0.77312995,107840.0,107830.0,0.65242276]
[1749483311128,0.77272995,107840.0,107830.0,0.65242276]
[1749483311331,0.77312995,107840.0,107830.0,0.65242276]
[1749483311528,0.81733026,107840.0,107830.0,0.65242276]
[1749483311827,0.77312995,107840.0,107830.0,1.01322276]
[1749483312521,0.77312995,107840.0,107830.0,0.85101426]
[1749483312722,0.81734161,107840.0,107830.0,0.85101426]
[1749483313030,0.81734161,107840.0,107830.0,0.49021426]
[1749483313524,0.77834161,107840.0,107830.0,0.49021426]
[1749483313725,0.77794161,107840.0,107830.0,0.48981426]
[1749483314222,0.77794161,107840.0,107830.0,0.49621426]
[1749483314422,0.77994161,107840.0,107830.0,0.49621426]
[1749483314822,0.77994161,107840.0,107830.0,0.68160276]
[1749483315029,0.77974161,107840.0,107830.0,0.68160276]
[1749483315429,0.77974161,107840.0,107830.0,0.49621426]
[1749483315625,1.33483275,107840.0,107830.0,0.49621426]
[1749483315827,1.38963275,107840.0,107830.0,0.44211426]
[1749483316522,1.44813275,107840.0,107830.0,0.44251426]
[1749483316730,1.44813275,107840.0,107830.0,0.38531426]
[1749483316925,1.44813275,107840.0,107830.0,0.38491426]
[1749483317126,1.44813275,107840.0,107830.0,0.38531426]
[1749483317625,1.60193275,107840.0,107830.0,0.38531426]
[1749483317829,1.65833275,107840.0,107830.0,0.38531426]
[1749483318029,1.65833275,107840.0,107830.0,0.22958]
[1749483318030,1.67520297,107840.0,107830.0,0.22958]
[1749483318226,0.1854229,107810.0,107800.0,7.419e-05]
[1749483318527,0.1854745,107780.0,107770.0,0.4462917]
[1749483318730,1.06455479,107780.0,107770.0,0.01286631]
[1749483318930,0.1855102,107760.0,107750.0,0.3608]
[1749483319131,0.6130024,107760.0,107740.0,0.3608]
[1749483319327,0.51171152,107760.0,107750.0,0.3608]
[1749483319535,0.5117952,107760.0,107750.0,0.52398331]
[1749483319732,0.5117952,107760.0,107750.0,0.57912324]
[1749483319933,0.6983041,107760.0,107750.0,0.68452635]
[1749483320232,0.5127952,107760.0,107750.0,0.85742921]
[1749483320429,0.6983041,107760.0,107750.0,0.68456844]
[1749483320728,0.6983041,107760.0,107750.0,1.05742921]
[1749483321034,0.6983041,107760.0,107750.0,1.07008226]
[1749483321230,1.25339524,107760.0,107750.0,0.22605305]
[1749483321434,1.25339524,107760.0,107750.0,0.37585616]
[1749483321633,1.30829524,107760.0,107750.0,0.09320311]
[1749483321833,1.48228959,107760.0,107750.0,0.09320311]
[1749483322044,1.48228959,107760.0,107750.0,0.09280311]
[1749483322232,1.48228959,107760.0,107750.0,0.09320311]
[1749483322535,1.30358587,107760.0,107750.0,0.09320311]
[1749483322848,1.49787701,107760.0,107750.0,0.09320311]
[1749483323333,0.26399346,107760.0,107750.0,0.09420311]
[1749483323640,1.15287346,107760.0,107750.0,0.15260311]
[1749483323933,1.15295346,107760.0,107750.0,0.35260311]
[1749483324940,1.15295346,107760.0,107750.0,0.40900311]
[1749483327149,0.62479346,107760.0,107750.0,0.59452931]
[1749483327337,1.15279346,107760.0,107750.0,0.59452931]
[1749483327742,1.15275346,107760.0,107750.0,0.59452931]
[1749483328242,0.60644456,107760.0,107750.0,0.59452931]
[1749483328440,0.60652456,107760.0,107750.0,1.14962045]
[1749483328740,0.78299247,107760.0,107750.0,1.14962045]
[1749483329735,0.78299247,107760.0,107750.0,0.95532931]
[1749483330132,0.06944347,107760.0,107750.0,1.24242045]
[1749483330343,0.49736347,107760.0,107750.0,1.49242045]
[1749483330535,0.49740347,107760.0,107750.0,1.39962045]
[1749483330843,0.06944347,107760.0,107750.0,1.49242045]
[1749483331146,0.49736347,107760.0,107750.0,1.49242045]
[1749483332041,0.00013894,107770.0,107760.0,0.185509]
[1749483332335,0.1854745,107780.0,107770.0,0.2782174]
[1749483332540,0.68674895,107780.0,107770.0,0.94310854]
[1749483332734,0.68674895,107780.0,107770.0,1.03589254]
[1749483333137,0.68674895,107780.0,107770.0,0.93438729]
[1749483334451,0.68674895,107780.0,107770.0,1.13438729]
[1749483334940,0.69474895,107780.0,107770.0,1.13538729]
[1749483335447,0.69474895,107780.0,107770.0,1.09870329]
[1749483335642,0.50927445,107780.0,107770.0,1.09870329]
[1749483336840,0.08127445,107780.0,107770.0,1.38577843]
[1749483337042,0.42809894,107790.0,107780.0,0.1854746]
[1749483337249,0.42809894,107790.0,107780.0,0.85046574]
[1749483337448,0.42809894,107790.0,107780.0,0.94324174]
[1749483337644,0.00013894,107790.0,107780.0,1.03602763]
[1749483338651,0.00913894,107790.0,107780.0,1.03602763]
[1749483339944,0.00913894,107790.0,107780.0,0.84173649]
[1749483340143,0.00913894,107790.0,107780.0,1.03602763]
[1749483340745,0.00913894,107790.0,107780.0,1.78172763]
[1749483340944,0.08309468,107790.0,107780.0,1.78172763]
[1749483341151,0.00913894,107790.0,107780.0,1.78172763]
[1749483341546,0.10052,107800.0,107780.0,1.78172763]
[1749483341743,1.0339846,107810.0,107800.0,0.1854401]
[1749483341943,0.1854246,107810.0,107800.0,0.74053124]
[1749483342145,0.1854246,107810.0,107800.0,0.6567401]
[1749483342451,0.1854246,107810.0,107800.0,0.74951308]
[1749483343155,0.9633435,107820.0,107810.0,0.1854229]
[1749483343450,0.14504164,107820.0,107810.0,0.6011229]
[1749483343647,0.57292164,107820.0,107810.0,1.00347411]
[1749483343846,0.14504164,107820.0,107810.0,1.00347411]
[1749483344548,0.22608736,107820.0,107810.0,1.00347411]
[1749483344849,0.41149316,107820.0,107810.0,1.00347411]
[1749483345051,0.41149316,107820.0,107810.0,0.80918297]
[1749483345251,0.67181316,107820.0,107810.0,0.33308297]
[1749483345551,1.4492043,107820.0,107810.0,0.27818297]
[1749483345741,1.5668043,107820.0,107810.0,0.27818297]
[1749483346654,1.5668043,107820.0,107810.0,0.47818297]
[1749483346844,1.37251316,107820.0,107810.0,0.47818297]
[1749483348755,1.33351316,107820.0,107810.0,0.47818297]
[1749483350156,1.5278043,107820.0,107810.0,0.29276007]
[1749483350348,1.52941851,107820.0,107810.0,0.29276007]
[1749483350743,1.52941851,107820.0,107810.0,0.47818297]
[1749483350949,1.52941851,107820.0,107810.0,0.29276007]
[1749483351146,1.52941851,107820.0,107810.0,0.47818307]
[1749483351755,1.52941851,107820.0,107810.0,0.29276007]
[1749483353154,1.68321851,107820.0,107810.0,0.29276007]
[1749483353556,1.52941851,107820.0,107810.0,0.29276007]
[1749483355848,1.49041851,107820.0,107810.0,0.29276007]
[1749483356156,1.5345177,107820.0,107810.0,0.29276007]
[1749483358353,1.57696235,107820.0,107810.0,0.29276007]
[1749483361161,0.1854228,107810.0,107800.0,0.01906]
[1749483361360,1.47093859,107810.0,107800.0,0.01906]
[1749483361568,1.99465859,107810.0,107800.0,0.11181147]
[1749483361757,2.09569312,107810.0,107800.0,0.01906]
[1749483362260,2.09969312,107810.0,107800.0,0.01906]
[1749483362462,0.18544,107800.0,107790.0,0.00013894]
[1749483362658,1.20355579,107800.0,107790.0,0.00013894]
[1749483362859,1.20355579,107800.0,107790.0,0.09289901]
[1749483363362,1.2468563,107800.0,107790.0,0.09289901]
[1749483363564,1.2468563,107800.0,107790.0,0.29289901]
[1749483363762,1.2468563,107800.0,107790.0,0.20013894]
[1749483363963,1.2468563,107800.0,107790.0,0.18648675]
[1749483364157,1.30459032,107800.0,107790.0,0.18648675]
[1749483364362,1.40035832,107800.0,107790.0,0.18648675]
[1749483365566,1.40035832,107800.0,107790.0,0.12840283]
[1749483365761,1.59464946,107800.0,107790.0,0.06790283]
[1749483366062,0.1854572,107790.0,107780.0,0.00013894]
[1749483366257,0.1855089,107760.0,107750.0,0.4963568]
[1749483366453,0.70954764,107760.0,107750.0,0.49561324]
[1749483366651,0.70954764,107760.0,107750.0,0.27712588]
[1749483366850,0.70954764,107760.0,107750.0,0.45039478]
[1749483367056,0.69447888,107760.0,107750.0,0.46308679]
[1749483367264,0.80637888,107760.0,107750.0,0.27767439]
[1749483367563,0.84850903,107760.0,107750.0,0.40691115]
[1749483367872,0.84850903,107760.0,107750.0,0.39409478]
[1749483368067,0.84850903,107760.0,107750.0,0.40691069]
[1749483368367,0.80637888,107760.0,107750.0,0.39409478]
[1749483368667,0.80637888,107760.0,107750.0,0.4347398]
[1749483369257,0.80637888,107760.0,107750.0,0.42192478]
[1749483369664,0.8810861,107760.0,107750.0,0.42192478]
[1749483369965,0.8810861,107760.0,107750.0,0.43472021]
[1749483370165,0.92402494,107760.0,107750.0,0.43472032]
[1749483370660,0.92402494,107760.0,107750.0,0.42192478]
[1749483370864,0.92402494,107760.0,107750.0,0.43471952]
[1749483371062,0.92402494,107760.0,107750.0,0.42192478]
[1749483371259,0.92402494,107760.0,107750.0,0.43472074]
[1749483371464,0.92402494,107760.0,107750.0,0.43472153]
[1749483371658,0.81212494,107760.0,107750.0,0.43472169]
[1749483371860,0.30315496,107760.0,107750.0,0.42192478]
[1749483372160,0.65024606,107760.0,107750.0,0.7954622]
[1749483372566,0.83575496,107760.0,107750.0,0.79532331]
[1749483372869,0.83575496,107760.0,107750.0,0.99531397]
[1749483373166,0.83575496,107760.0,107750.0,0.99530229]
[1749483373667,0.83575496,107760.0,107750.0,0.99532031]
[1749483374465,0.83575496,107760.0,107750.0,0.99531753]
[1749483374668,0.83575496,107760.0,107750.0,0.98272478]
[1749483375165,0.83575496,107760.0,107750.0,0.99531807]
[1749483375377,0.83575496,107760.0,107750.0,0.98272478]
[1749483375573,0.83575496,107760.0,107750.0,0.99531799]
[1749483375767,0.83575496,107760.0,107750.0,0.99531944]
[1749483375974,0.83575496,107760.0,107750.0,0.99532202]
[1749483376173,0.83575496,107760.0,107750.0,0.98272478]
[1749483376475,0.82671372,107760.0,107750.0,0.99495572]
[1749483376667,0.82671372,107760.0,107750.0,0.63415854]
[1749483376862,0.82671372,107760.0,107750.0,0.62152478]
[1749483377271,0.82671372,107760.0,107750.0,0.63460584]
[1749483378268,0.82671372,107760.0,107750.0,0.63458909]
[1749483378473,0.82671372,107760.0,107750.0,0.63458924]
[1749483378777,0.82671372,107760.0,107750.0,0.63458893]
[1749483378975,0.82671372,107760.0,107750.0,0.62192478]
[1749483379177,0.82671372,107760.0,107750.0,0.63458907]
[1749483379976,0.82671372,107760.0,107750.0,0.62192478]
[1749483380379,0.82671372,107760.0,107750.0,0.63462188]
[1749483380573,0.82671372,107760.0,107750.0,0.63462123]
[1749483380975,0.82671372,107760.0,107750.0,0.62192478]
[1749483381174,0.82671372,107760.0,107750.0,0.63462496]
[1749483381579,0.82671372,107760.0,107750.0,0.6346256]
[1749483381765,0.82671372,107760.0,107750.0,0.63464095]
[1749483381970,0.82671372,107760.0,107750.0,0.62152478]
[1749483382169,0.82671372,107760.0,107750.0,0.63464092]
[1749483382578,0.82671372,107760.0,107750.0,0.62192478]
[1749483382776,0.82671372,107760.0,107750.0,0.63464131]
[1749483383075,0.82671372,107760.0,107750.0,0.62192478]
[1749483383272,0.82671372,107760.0,107750.0,0.63464137]
[1749483383468,0.82671372,107760.0,107750.0,0.63464159]
[1749483383666,0.82671372,107760.0,107750.0,0.63464157]
[1749483383872,0.82671372,107760.0,107750.0,0.63464093]
[1749483384082,0.82671372,107760.0,107750.0,0.62192478]
[1749483384380,0.82579372,107760.0,107750.0,0.63869753]
[1749483384980,0.82579372,107760.0,107750.0,0.63870233]
[1749483385185,0.10860482,107760.0,107750.0,0.81567172]
[1749483385380,0.63919734,107770.0,107760.0,0.1855089]
[1749483385576,1.17017378,107770.0,107760.0,0.55666264]
[1749483385881,1.17017378,107770.0,107760.0,0.64945192]
[1749483386073,1.17017378,107770.0,107760.0,0.45976158]
[1749483386779,1.17017378,107770.0,107760.0,0.45976095]
[1749483386980,0.27765378,107770.0,107760.0,0.45976095]
[1749483387174,0.80921378,107770.0,107760.0,0.44711201]
[1749483387375,0.00013894,107770.0,107760.0,0.44711201]
[1749483387571,0.18563064,107770.0,107760.0,0.99760235]
[1749483387782,0.70818988,107770.0,107760.0,1.01015684]
[1749483387982,0.70818988,107770.0,107760.0,0.99760235]
[1749483388181,0.6390274,107780.0,107770.0,0.1854917]
[1749483388379,0.6390274,107780.0,107770.0,0.49158204]
[1749483388678,1.1705474,107780.0,107770.0,0.58437654]
[1749483388877,1.1705474,107780.0,107770.0,0.3946862]
[1749483389484,0.7412274,107780.0,107770.0,0.3946862]
[1749483389781,0.8116274,107780.0,107770.0,0.3946862]
[1749483391685,0.85807926,107780.0,107770.0,0.3946862]
[1749483393080,0.90013056,107780.0,107770.0,0.3946862]
[1749483393288,0.90012889,107780.0,107770.0,0.3946862]
[1749483393985,0.85807926,107780.0,107770.0,0.3946862]
[1749483394185,0.90013271,107780.0,107770.0,0.3946862]
[1749483395185,0.95823271,107780.0,107770.0,0.3946862]
[1749483395683,1.14792305,107780.0,107770.0,0.2132511]
[1749483395882,1.50872305,107780.0,107770.0,0.0968511]
[1749483396083,1.56422305,107780.0,107770.0,0.0968511]
[1749483396286,1.56422305,107780.0,107770.0,0.0972511]
[1749483397091,1.56422305,107780.0,107770.0,0.0968511]
[1749483397289,1.56422305,107780.0,107770.0,0.0972511]
[1749483400089,1.56422305,107780.0,107770.0,0.1250811]
[1749483401992,1.60759609,107780.0,107770.0,0.1246811]
[1749483402189,1.60759609,107780.0,107770.0,0.1250811]
[1749483403593,1.60759609,107780.0,107770.0,0.13766654]
[1749483403891,1.60759609,107780.0,107770.0,0.13766686]
[1749483404590,1.66533011,107780.0,107770.0,0.09296016]
[1749483404789,0.1854917,107770.0,107760.0,0.16458456]
[1749483404990,0.93799367,107770.0,107760.0,0.16458456]
[1749483405192,0.93799367,107770.0,107760.0,0.09318589]
[1749483405586,0.93799367,107770.0,107760.0,0.14798589]
[1749483405791,0.93799367,107770.0,107760.0,0.34798589]
[1749483409895,0.93799367,107770.0,107760.0,0.35204249]
[1749483414294,0.93799367,107770.0,107760.0,0.29724249]
[1749483414495,0.57718625,107770.0,107760.0,0.29724249]
[1749483414799,0.93798625,107770.0,107760.0,0.29724249]
[1749483415299,1.46610625,107770.0,107760.0,0.29724249]
[1749483417197,1.46610625,107770.0,107760.0,0.30986658]
[1749483417398,1.46610625,107770.0,107760.0,0.30988283]
[1749483417597,1.46610625,107770.0,107760.0,0.30948283]
[1749483417797,1.46610625,107770.0,107760.0,0.30988533]
[1749483417993,0.93798625,107770.0,107760.0,0.30988533]
[1749483418202,1.46986625,107770.0,107760.0,0.30988533]
[1749483418399,1.46986625,107770.0,107760.0,0.35354249]
[1749483418901,1.46986625,107770.0,107760.0,0.36611735]
[1749483419201,1.46986625,107770.0,107760.0,0.35354249]
[1749483419499,0.74829591,107770.0,107760.0,0.35354249]
[1749483419701,1.46974625,107770.0,107760.0,0.35354249]
[1749483420099,1.46974625,107770.0,107760.0,0.29724249]
[1749483420298,0.1855433,107740.0,107730.0,0.16789586]
[1749483420501,1.25883052,107740.0,107730.0,0.12219105]
[1749483420697,1.25883052,107740.0,107730.0,0.12267557]
[1749483421002,1.25883052,107740.0,107730.0,0.2021468]
[1749483421203,1.25883052,107740.0,107730.0,0.2025468]
[1749483421498,1.25891774,107740.0,107730.0,0.2025468]
[1749483421700,1.25891774,107740.0,107730.0,0.21550077]
[1749483421904,1.25891774,107740.0,107730.0,0.2021468]
[1749483422106,1.0692274,107740.0,107730.0,0.2025468]
[1749483422306,1.0692274,107740.0,107730.0,0.4065468]
[1749483422802,1.0722274,107740.0,107730.0,0.4025468]
[1749483423002,1.0722274,107740.0,107730.0,0.41544261]
[1749483423197,1.0722274,107740.0,107730.0,0.4025468]
[1749483423393,1.0722274,107740.0,107730.0,0.41545163]
[1749483423592,1.0722274,107740.0,107730.0,0.41545173]
[1749483423799,0.1795874,107740.0,107730.0,0.60100708]
[1749483424102,0.7113474,107740.0,107730.0,0.5881074]
[1749483424303,0.7113474,107740.0,107730.0,0.60102009]
[1749483424505,0.7113474,107740.0,107730.0,0.60099703]
[1749483424705,0.7113474,107740.0,107730.0,0.60099638]
[1749483424902,0.7113474,107740.0,107730.0,0.5881074]
[1749483425097,1.0721474,107740.0,107730.0,0.41949579]
[1749483425303,1.26183774,107740.0,107730.0,0.41957114]
[1749483425499,1.26183774,107740.0,107730.0,0.41958491]
[1749483425811,1.26183774,107740.0,107730.0,0.41960648]
[1749483426006,1.26183774,107740.0,107730.0,0.4066034]
[1749483426507,1.24583774,107740.0,107730.0,0.4066034]
[1749483426803,1.24583774,107740.0,107730.0,0.31045791]
[1749483426804,1.39662206,107740.0,107730.0,0.31045791]
[1749483427006,1.44001468,107740.0,107730.0,0.21738497]
[1749483427208,1.39662206,107740.0,107730.0,0.21778062]
[1749483427404,1.39662206,107740.0,107730.0,0.21738278]
[1749483427606,1.39662206,107740.0,107730.0,0.21778899]
[1749483427812,1.39662206,107740.0,107730.0,0.21779283]
[1749483428008,1.01866206,107740.0,107730.0,0.2044566]
[1749483428204,1.01866206,107740.0,107730.0,0.21779401]
[1749483428205,1.62728905,107740.0,107730.0,0.21779401]
[1749483428400,1.62728905,107740.0,107730.0,0.2044566]
[1749483429115,1.62728905,107740.0,107730.0,0.21778217]